Workbook

Sheet 1. Information Sheet
U1: a | AA1: =IF(OR(F16="", F16="(if applicable)"), F14, F14 & " - " & F16) -> Burlington Hydro Inc
A12: Note: Depending on the selections made below, certain worksheets in this workbook will be hidden. | M12: Version | N12: 4
E14: Utility Name | F14: Burlington Hydro Inc
E16: Service Territory (if filing more than one model)
E18: Assigned EB Number | F18: EB-2018-0021
E20: Name of Contact and Title | F20: Sally Blackwell, Director Regulator Affairs
E22: Phone Number | F22: 905-336-4373
E24: Email Address | F24: sblackwell@burlingtonhydro.com
A26: Is this Capital Module being filed in a CoS or Price-Cap IR Application? | F26: Price-Cap IR | J26: Rate Year | K26: 2019
A28: ="Indicate the Price-Cap IR Year (1, 2, 3, 4, etc) in which " &F14 & " is applying:" -> Indicate the Price-Cap IR Year (1, 2, 3, 4, etc) in which Burlington Hydro Inc is applying: | F28: 5
E30: =F14 & " is applying for:" -> Burlington Hydro Inc is applying for: | F30: ICM Approval
A32: Last Rebasing Year: | F32: =IF(F26="COS", K26-F28, VLOOKUP(F28, D107:E115,2,FALSE)) -> 2014
A34: Last COS OEB Application Number | F34: EB-2013-0115
A36: The most recent complete year for which actual billing and load data exists | F36: =K26-2 -> 2017
E38: Current IPI | F38: 0.012
E40: Strech Factor Assigned to Middle Cohort | F40: II
E42: Stretch Factor Value | F42: 0.0015
E44: Price Cap Index | F44: =F38-F42 -> 0.0105
A46: Based on the inputs above, the growth factor utilized in the Materiality Threshold Calculation will be determined by: | F46: =IF($F$26="COS", $K$26 & " Test Year Distribution Revenues", VLOOKUP($F$28, $D$107:$M$115, 3,FALSE)) -> 2017 Actual Distribution Revenues | I46: =LEFT(F46,4) -> 2017 | J46: These will be hidden later. For year three price cap IR, it should be most recent actuals for 2014 divided by 2013 CoS Board-approved. For year 4 price cap IR, should be 2014 actuals divided by 2012 CoS Board-approved.
F47: =IF(F26="COS",F36&" Actual Distribution Revenues",VLOOKUP($F$28, $D$107:$M$115, 7,FALSE)) -> 2014 Board-Approved Distribution Revenues | I47: =LEFT(F47,4) -> 2014
B49: Notes
C51: Pale green cells represent input cells.
C53: Pale blue cells represent drop-down lists. The applicant should select the appropriate item from the drop-down list.
C55: White cells contain fixed values, automatically generated values or formulae.
A64: OEB policies regarding rate-setting and rebasing following distributor consolidations could allow a distributor to not rebase rates for up to ten years. A distributor could also apply for and receive OEB approval to defer rebasing. If a distributor is under Price Cap IR for more than four years after rebasing and applies for an ICM, this spreadsheet will need to be adapted to accommodate those circumstances. The distributor should contact OEB staff to discuss the circumstances so that a customized model can be provided.
B91: CoS | D91: Price Cap IR | H91: Deferred Rebasing
C92: Year | D92: 1 | E92: 2 | F92: 3 | G92: 4 | H92: 5 | I92: 6 | J92: 7 | K92: 8 | L92: 9
A93: RY | B93: =K26 -> 2019 | C93: t | D93: =K26 -> 2019 | E93: =D93 -> 2019 | F93: =E93 -> 2019 | G93: 2019 | H93: 2019 | I93: 2020 | J93: 2021 | K93: 2022 | L93: 2023
A94: LY ACTUALS | B94: =B93-2 -> 2017 | C94: t-2 | D94: =D93-2 -> 2017 | E94: =E93-2 -> 2017 | F94: 2017 | G94: 2017 | H94: =H93-2 -> 2017 | I94: =I93-2 -> 2018 | J94: =J93-2 -> 2019 | K94: =K93-2 -> 2020 | L94: =L93-2 -> 2021
A95: LAST COS | D95: =D93-D92 -> 2018 | E95: =E93-E92 -> 2017 | F95: 2016 | G95: 2015 | H95: 2014 | I95: =I93-I92 -> 2014 | J95: =J93-J92 -> 2014 | K95: 2014 | L95: 2014
A97: Growth
A98: Numerator | B98: =B93&" Test Year Distribution Revenues" -> 2019 Test Year Distribution Revenues | D98: =D95&" Board-Approved Distribution Revenues" -> 2018 Board-Approved Distribution Revenues | E98: =E95&" Board-Approved Distribution Revenues" -> 2017 Board-Approved Distribution Revenues | F98: =F95+1&" Actual Distribution Revenues" -> 2017 Actual Distribution Revenues | G98: =G95+2&" Actual Distribution Revenues" -> 2017 Actual Distribution Revenues | H98: =H95+3&" Actual Distribution Revenues" -> 2017 Actual Distribution Revenues | I98: =I95+3&" Actual Distribution Revenues" -> 2017 Actual Distribution Revenues | J98: =J95+4&" Actual Distribution Revenues" -> 2018 Actual Distribution Revenues | K98: =K95+5&" Actual Distribution Revenues" -> 2019 Actual Distribution Revenues | L98: =L95+6&" Actual Distribution Revenues" -> 2020 Actual Distribution Revenues
A99: Denominator | B99: =B94&" Actual Distribution Revenues" -> 2017 Actual Distribution Revenues | D99: =D94&" Actual Distribution Revenues" -> 2017 Actual Distribution Revenues | E99: =E94-1&" Actual Distribution Revenues" -> 2016 Actual Distribution Revenues | F99: =F95&" Board-Approved Distribution Revenues" -> 2016 Board-Approved Distribution Revenues | G99: 2015 Board-Approved Distribution Revenues | H99: =H95&" Board-Approved Distribution Revenues" -> 2014 Board-Approved Distribution Revenues | I99: =I95&" Board-Approved Distribution Revenues" -> 2014 Board-Approved Distribution Revenues | J99: =J95&" Board-Approved Distribution Revenues" -> 2014 Board-Approved Distribution Revenues | K99: =K95&" Board-Approved Distribution Revenues" -> 2014 Board-Approved Distribution Revenues | L99: =L95&" Board-Approved Distribution Revenues" -> 2014 Board-Approved Distribution Revenues
A100: Annualized? | B100: Yes | D100: No | E100: No | F100: No | G100: Yes | H100: Yes | I100: Yes | J100: Yes | K100: Yes | L100: Yes
A101: Divisor to Annuqlized | B101: =B104 -> 2 | D101: 1 | E101: 1 | F101: 1 | G101: 2 | H101: 3 | I101: 3 | J101: 4 | K101: 5 | L101: 6
B102: =LEFT(B98,4) -> 2019 | D102: =LEFT(D98,4) -> 2018 | E102: 2017 | F102: 2017 | G102: 2017 | H102: =LEFT(H98,4) -> 2017 | I102: =LEFT(I98,4) -> 2017 | J102: 2018 | K102: 2019 | L102: 2020
B103: =LEFT(B99,4) -> 2017 | D103: 2017 | E103: 2016 | F103: 2016 | G103: 2015 | H103: =LEFT(H99,4) -> 2014 | I103: 2014 | J103: 2014 | K103: 2014 | L103: 2014
B104: =B102-B103 -> 2 | D104: =D102-D103 -> 1 | E104: 1 | F104: 1 | G104: 2 | H104: =H102-H103 -> 3 | I104: =I102-I103 -> 3 | J104: =J102-J103 -> 4 | K104: =K102-K103 -> 5 | L104: =L102-L103 -> 6
D107: Price Cap IR | E107: Last CoS | F107: Numerator | J107: Denominator
D108: 1 | E108: =D95 -> 2018 | F108: =D98 -> 2018 Board-Approved Distribution Revenues | J108: =D99 -> 2017 Actual Distribution Revenues
D109: 2 | E109: =E95 -> 2017 | F109: =E98 -> 2017 Board-Approved Distribution Revenues | J109: =E99 -> 2016 Actual Distribution Revenues
D110: 3 | E110: =F95 -> 2016 | F110: =F98 -> 2017 Actual Distribution Revenues | J110: =F99 -> 2016 Board-Approved Distribution Revenues
D111: 4 | E111: =G95 -> 2015 | F111: =G98 -> 2017 Actual Distribution Revenues | J111: =G99 -> 2015 Board-Approved Distribution Revenues
D112: 5 | E112: =+H95 -> 2014 | F112: =I98 -> 2017 Actual Distribution Revenues | J112: =I99 -> 2014 Board-Approved Distribution Revenues
D113: 6 | E113: =J95 -> 2014 | F113: =J98 -> 2018 Actual Distribution Revenues | J113: =J99 -> 2014 Board-Approved Distribution Revenues
D114: 7 | E114: =K95 -> 2014 | F114: =K98 -> 2019 Actual Distribution Revenues | J114: =K99 -> 2014 Board-Approved Distribution Revenues
D115: 8 | E115: =L95 -> 2014 | F115: =L98 -> 2020 Actual Distribution Revenues | J115: =L99 -> 2014 Board-Approved Distribution Revenues

Sheet 3. Rate Class Selection
A12: Select the appropriate rate classes as they appear on your most recent Board-Approved Tariff of Rates and Charges, excluding the MicroFit Class.
A14: How many classes are on your most recent Board-Approved Tariff of Rates and Charges? | J14: 5
A16: Select Your Rate Classes from the Blue Cells below. Please ensure that a rate class is assigned to each shaded cell.
B18: Rate Class Classification | Q18: # of duplicates
A19: 1 | B19: RESIDENTIAL | P19: =COUNTIF($B$19:$J$40, B19) -> 1 | Q19: =COUNTIF(P19:P40, 2)/2 -> 0
A20: 2 | B20: GENERAL SERVICE LESS THAN 50 KW | P20: =COUNTIF($B$19:$J$40, B20) -> 1
A21: 3 | B21: GENERAL SERVICE GREATER THAN 50 KW | P21: 1
A22: 4 | B22: UNMETERED SCATTERED LOAD | P22: 1
A23: 5 | B23: STREET LIGHTING | P23: 1
A24: 6 | P24: 0
A25: 7 | P25: 0
P26: 0
P27: 0
P28: 0
P29: 0
P30: 0
P31: 0
P32: 0
P33: 0

Sheet 4. Growth Factor - NUM_CALC1
A13: ="Input the billing determinants and base distribution rates associated with " & '1. Information Sheet'!F14 & "'s " & '1. Information Sheet'!F46 & ". Sheets 4 & 5 calculate the NUMERATOR portion of the growth factor calculation." -> Input the billing determinants and base distribution rates associated with Burlington Hydro Inc's 2017 Actual Distribution Revenues. Sheets 4 & 5 calculate the NUMERATOR portion of the growth factor calculation.
C15: 2017 Actual Distribution Demand | G15: Current Approved Distribution Rates
A16: Rate Class | B16: Units | C16: Billed Customers or Connections | D16: Billed kWh | E16: Billed kW (if applicable) | G16: Monthly Service Charge | H16: Distribution Volumetric Rate kWh | I16: Distribution Volumetric Rate kW
A17: RESIDENTIAL | B17: $/kWh | C17: 60593 | D17: 499660804 | E17: 0 | G17: 22.44 | H17: 0.0042 | I17: 0
A18: GENERAL SERVICE LESS THAN 50 KW | B18: $/kWh | C18: 5523 | D18: 165968773 | E18: 0 | G18: 26.22 | H18: 0.014 | I18: 0
A19: GENERAL SERVICE GREATER THAN 50 KW | B19: $/kW | C19: 1006 | E19: 2376074 | G19: 61.46 | H19: 0 | I19: 3.0256
A20: UNMETERED SCATTERED LOAD | B20: $/kWh | C20: 582 | D20: 3130312 | E20: 0 | G20: 9.42 | H20: 0.0164 | I20: 0
A21: STREET LIGHTING | B21: $/kW | C21: 15386 | E21: 26971 | G21: 0.63 | H21: 0 | I21: 4.5568

Sheet 5. Growth Factor - NUM_CALC2
A12: =IF('1. Information Sheet'!F26="COS", "Calculation of " & '1. Information Sheet'!K26 & " Revenue Requirement. No input required.", "Calculation of " & '1. Information Sheet'!F36 & " Revenue Requirement. No input required.") -> Calculation of 2017 Revenue Requirement. No input required.
C14: =+'4. Growth Factor - NUM_CALC1'!C15:E15 -> 2017 Actual Distribution Demand
A15: Rate Class | C15: Billed Customers or Connections | D15: Billed kWh | E15: Billed kW (if applicable) | G15: Monthly Service Charge | H15: Distribution Volumetric Rate kWh | I15: Distribution Volumetric Rate kW | K15: Service Charge Revenue | L15: Distribution Volumetric Rate Revenue kWh | M15: Distribution Volumetric Rate Revenue kW | N15: Revenue Requirement from Rates | P15: Service Charge % Revenue | Q15: Distribution Volumetric Rate % Revenue kWh | R15: Distribution Volumetric Rate % Revenue kW | S15: Total % Revenue
C16: A | D16: B | E16: C | G16: D | H16: E | I16: F | K16: G = A * D *12 | L16: H = B * E | M16: I = C * F | N16: J = G + H + I | P16: K = G / J | Q16: L = H / J | R16: M = I / J | S16: N = J / R
A17: =+'4. Growth Factor - NUM_CALC1'!A17 -> RESIDENTIAL | C17: =+'4. Growth Factor - NUM_CALC1'!C17 -> 60593 | D17: =+'4. Growth Factor - NUM_CALC1'!D17 -> 499660804 | E17: =+'4. Growth Factor - NUM_CALC1'!E17 -> 0 | G17: =+'4. Growth Factor - NUM_CALC1'!G17 -> 22.44 | H17: =+'4. Growth Factor - NUM_CALC1'!H17 -> 0.0042 | I17: =+'4. Growth Factor - NUM_CALC1'!I17 -> 0 | K17: =G17*C17*12 -> 16316483.04 | L17: =H17*D17 -> 2098575.377 | M17: =I17*E17 -> 0 | N17: =SUM(K17,L17,M17) -> 18415058.42 | P17: =IF(ISERROR(K17/N17),0,ROUND(K17/N17,3)) -> 0.886 | Q17: =IF(ISERROR(L17/N17),0,ROUND(L17/N17,3)) -> 0.114 | R17: =IF(ISERROR(M17/N17),0,ROUND(M17/N17,3)) -> 0 | S17: =N17/N24 -> 0.5985966348
A18: =+'4. Growth Factor - NUM_CALC1'!A18 -> GENERAL SERVICE LESS THAN 50 KW | C18: =+'4. Growth Factor - NUM_CALC1'!C18 -> 5523 | D18: =+'4. Growth Factor - NUM_CALC1'!D18 -> 165968773 | E18: =+'4. Growth Factor - NUM_CALC1'!E18 -> 0 | G18: =+'4. Growth Factor - NUM_CALC1'!G18 -> 26.22 | H18: =+'4. Growth Factor - NUM_CALC1'!H18 -> 0.014 | I18: =+'4. Growth Factor - NUM_CALC1'!I18 -> 0 | K18: 1737756.72 | L18: =H18*D18 -> 2323562.822 | M18: 0 | N18: 4061319.542 | P18: 0.428 | Q18: 0.572 | R18: 0 | S18: =N18/N24 -> 0.1320165354
A19: =+'4. Growth Factor - NUM_CALC1'!A19 -> GENERAL SERVICE GREATER THAN 50 KW | C19: =+'4. Growth Factor - NUM_CALC1'!C19 -> 1006 | D19: =+'4. Growth Factor - NUM_CALC1'!D19 -> 0 | E19: =+'4. Growth Factor - NUM_CALC1'!E19 -> 2376074 | G19: =+'4. Growth Factor - NUM_CALC1'!G19 -> 61.46 | H19: =+'4. Growth Factor - NUM_CALC1'!H19 -> 0 | I19: =+'4. Growth Factor - NUM_CALC1'!I19 -> 3.0256 | K19: 741945.12 | L19: 0 | M19: =I19*E19 -> 7189049.494 | N19: 7930994.614 | P19: 0.094 | Q19: 0 | R19: 0.906 | S19: =N19/N24 -> 0.2578035095
A20: =+'4. Growth Factor - NUM_CALC1'!A20 -> UNMETERED SCATTERED LOAD | C20: =+'4. Growth Factor - NUM_CALC1'!C20 -> 582 | D20: =+'4. Growth Factor - NUM_CALC1'!D20 -> 3130312 | E20: =+'4. Growth Factor - NUM_CALC1'!E20 -> 0 | G20: =+'4. Growth Factor - NUM_CALC1'!G20 -> 9.42 | H20: =+'4. Growth Factor - NUM_CALC1'!H20 -> 0.0164 | I20: =+'4. Growth Factor - NUM_CALC1'!I20 -> 0 | K20: 65789.28 | L20: 51337.1168 | M20: =I20*E20 -> 0 | N20: 117126.3968 | P20: 0.562 | Q20: 0.438 | R20: 0 | S20: =N20/N24 -> 0.003807289957
A21: =+'4. Growth Factor - NUM_CALC1'!A21 -> STREET LIGHTING | C21: =+'4. Growth Factor - NUM_CALC1'!C21 -> 15386 | D21: =+'4. Growth Factor - NUM_CALC1'!D21 -> 0 | E21: =+'4. Growth Factor - NUM_CALC1'!E21 -> 26971 | G21: =+'4. Growth Factor - NUM_CALC1'!G21 -> 0.63 | H21: =+'4. Growth Factor - NUM_CALC1'!H21 -> 0 | I21: =+'4. Growth Factor - NUM_CALC1'!I21 -> 4.5568 | K21: 116318.16 | L21: 0 | M21: 122901.4528 | N21: 239219.6128 | P21: 0.486 | Q21: 0 | R21: 0.514 | S21: =N21/N24 -> 0.007776030461
C22: =+'4. Growth Factor - NUM_CALC1'!C22 -> 0 | D22: =+'4. Growth Factor - NUM_CALC1'!D22 -> 0 | E22: =+'4. Growth Factor - NUM_CALC1'!E22 -> 0 | G22: =+'4. Growth Factor - NUM_CALC1'!G22 -> 0 | H22: =+'4. Growth Factor - NUM_CALC1'!H22 -> 0 | I22: =+'4. Growth Factor - NUM_CALC1'!I22 -> 0 | K22: 0 | L22: 0 | M22: 0 | N22: 0 | P22: 0 | Q22: 0 | R22: 0 | S22: =N22/N24 -> 0
C23: =+'4. Growth Factor - NUM_CALC1'!C23 -> 0 | D23: =+'4. Growth Factor - NUM_CALC1'!D23 -> 0 | E23: =+'4. Growth Factor - NUM_CALC1'!E23 -> 0 | G23: =+'4. Growth Factor - NUM_CALC1'!G23 -> 0 | H23: =+'4. Growth Factor - NUM_CALC1'!H23 -> 0 | I23: =+'4. Growth Factor - NUM_CALC1'!I23 -> 0 | K23: 0 | L23: 0 | M23: 0 | N23: 0 | P23: 0 | Q23: 0 | R23: 0 | S23: =N23/N24 -> 0
A24: Total | C24: =SUM(C17:C23) -> 83090 | D24: =SUM(D17:D23) -> 668759889 | E24: =SUM(E17:E23) -> 2403045 | K24: =SUM(K17:K23) -> 18978292.32 | L24: =SUM(L17:L23) -> 4473475.316 | M24: =SUM(M17:M23) -> 7311950.947 | N24: =SUM(N17:N23) -> 30763718.58 | S24: =SUM(S17:S23) -> 1

Sheet 6. Rev_Requ_Check
A8: Applicants Rate Base | C8: =+'4. Growth Factor - NUM_CALC1'!G15 -> Current Approved Distribution Rates
A9: Average Net Fixed Assets
A10: Gross Fixed Assets - Re-based Opening | C10: =+'[2]App.2-BA1_Fix Asset Cont.CGAAP'!$D$59 -> 242255337 | D10: A
A11: Add: CWIP Re-based Opening | D11: B
A12: Re-based Capital Additions | C12: =+'[2]App.2-BA1_Fix Asset Cont.CGAAP'!$E$59 -> 7730045 | D12: C
A13: Re-based Capital Disposals | C13: =+'[2]App.2-BA1_Fix Asset Cont.CGAAP'!$F$59 -> 0 | D13: D
A14: Re-based Capital Retirements | D14: E
A15: Deduct: CWIP Re-based Closing | D15: F
A16: Gross Fixed Assets - Re-based Closing | C16: =SUM(C10:C15) -> 249985382 | D16: G
A17: Average Gross Fixed Assets | E17: =(C10+C16)/2 -> 246120359.5 | F17: H = ( A + G ) / 2
A19: Accumulated Depreciation - Re-based Opening | C19: =-'[2]App.2-BA1_Fix Asset Cont.CGAAP'!$I$59 -> 139112890 | D19: I
A20: Re-based Depreciation Expense | C20: =-'[2]App.2-BA1_Fix Asset Cont.CGAAP'!$J$59 -> 4510060 | D20: J
A21: Re-based Disposals | D21: K
A22: Re-based Retirements | D22: L
A23: Accumulated Depreciation - Re-based Closing | C23: =SUM(C19:C22) -> 143622950 | D23: M
A24: Average Accumulated Depreciation | E24: =SUM(C19,C23)/2 -> 141367920 | F24: N = ( I + M ) / 2
A26: Average Net Fixed Assets | E26: =E17-E24 -> 104752439.5 | F26: O = H - N
A28: Working Capital Allowance
A29: Working Capital Allowance Base | C29: =+'[3]4. Rate_Base'!$W$26 -> 208278793 | D29: P
A30: Working Capital Allowance Rate | C30: 0.13 | D30: Q
A31: Working Capital Allowance | E31: =C29*C30 -> 27076243.09 | F31: R = P * Q
A33: Rate Base | E33: =SUM(E26,E31) -> 131828682.6 | F33: S = O + R
A35: Return on Rate Base
A36: Deemed ShortTerm Debt % | C36: 0.04 | D36: T | E36: =E33*C36 -> 5273147.304 | F36: W = S * T
A37: Deemed Long Term Debt % | C37: 0.56 | D37: U | E37: =E33*C37 -> 73824062.25 | F37: X = S * U
A38: Deemed Equity % | C38: =1-C36-C37 -> 0.4 | D38: V | E38: =E33*C38 -> 52731473.04 | F38: Y = S * V
A40: Short Term Interest | C40: =+'[3]7. Cost_of_Capital'!$L$50 -> 0.0211 | D40: Z | E40: =E36*C40 -> 111263.4081 | F40: AC = W * Z
A41: Long Term Interest | C41: =+'[3]7. Cost_of_Capital'!$L$49 -> 0.0473 | D41: AA | E41: =E37*C41 -> 3491878.144 | F41: AD = X * AA
A42: Return on Equity | C42: =+'[3]7. Cost_of_Capital'!$L$54 -> 0.0936 | D42: AB | E42: =E38*C42 -> 4935665.876 | F42: AE = Y * AB
A43: Return on Rate Base | E43: =SUM(E40:E42) -> 8538807.429 | F43: AF = AC + AD + AE
A45: Distribution Expenses
A46: OM&A Expenses | C46: =+'[3]5. Utility Income'!$V$22+'[3]5. Utility Income'!$V$24-'[2]App.2-BA1_Fix Asset Cont.CGAAP'!$J$60 -> 17576532.63 | D46: AG
A47: Amortization | C47: =+'[3]5. Utility Income'!$V$23+'[2]App.2-BA1_Fix Asset Cont.CGAAP'!$J$60 -> 4510060.28 | D47: AH
A48: Ontario Capital Tax | C48: 0 | D48: AI
A49: Grossed Up PILs | C49: =+'[3]5. Utility Income'!$V$35:$V$35 -> 211145.6779 | D49: AJ
A50: Low Voltage | C50: 0 | D50: AK
A51: Transformer Allowance | C51: =+'[4]I6.1 Revenue'!$C$40 -> 571049.136 | D51: AL
D52: AM
D53: AN
D54: AO
E55: =SUM(C46:C54) -> 22868787.72 | F55: AP = SUM ( AG : AO )
A56: Revenue Offsets
A57: Specific Service Charges | C57: =-'[3]3. Data_Input_Sheet'!U28 -> -817981 | D57: AQ
A58: Late Payment Charges | C58: =-'[3]3. Data_Input_Sheet'!U29 -> -241000 | D58: AR
A59: Other Distribution Income | C59: =-'[3]3. Data_Input_Sheet'!U30 -> -625033 | D59: AS
A60: Other Income and Deductions | C60: =-'[3]3. Data_Input_Sheet'!U31 -> -317000 | D60: AT | E60: =SUM(C57:C60) -> -2001014 | F60: AU = SUM ( AQ : AT )
A62: Revenue Requirement from Distribution Rates | E62: =SUM(E60,E55,E43) -> 29406581.15 | F62: AV = AF + AP + AU | G62: =E62-C51 -> 28835532.02 | H62: after Tx allowance
A64: Rate Classes Revenue
A65: Rate Classes Revenue - Total (Sheet 5) | E65: =+'5. Growth Factor - NUM_CALC2'!N24 -> 30763718.58 | F65: AW
A67: Difference | E67: =E62-E65 -> -1357137.43 | F67: AZ = AV - AW
A69: Difference (Percentage - should be less than 1%) | E69: =IF(ISERROR(E67/E65),0,E67/E65) -> -0.04411486949 | F69: BA = AZ / AW

Sheet 7. Growth Factor - DEN_CALC1
A12: Input the billing determinants associated with Burlington Hydro Inc. 2014 Board-Approved Distribution Revenues. This sheet calculates the DENOMINATOR portion of the growth factor calculation.
A13: Pseudo Revenue Requirement Calculation.
C14: =+'1. Information Sheet'!F47 -> 2014 Board-Approved Distribution Revenues | G14: Current Approved Distribution Rates
A15: Rate Class | C15: Billed Customers or Connections | D15: Billed kWh | E15: Billed kW | G15: Monthly Service Charge | H15: Distribution Volumetric Rate kWh | I15: Distribution Volumetric Rate kW | K15: Service Charge Revenue | L15: Distribution Volumetric Rate Revenue kWh | M15: Distribution Volumetric Rate Revenue kW | N15: Total Revenue By Rate Class | P15: Service Charge % Revenue | Q15: Distribution Volumetric Rate % Revenue kWh | R15: Distribution Volumetric Rate % Revenue kW | S15: Total % Revenue
C16: A | D16: B | E16: C | G16: D | H16: E | I16: F | K16: G = A * D *12 | L16: H = B * E | M16: I = C * F | N16: J = G + H + I | P16: K = G / Jtotal | Q16: L = H / Jtotal | R16: M = I / Jtotal | S16: N = J / Jtotal
A17: =+'4. Growth Factor - NUM_CALC1'!A17 -> RESIDENTIAL | C17: 59869 | D17: =+'[5]I6.1 Revenue'!$D$25 -> 553858289 | E17: 0 | G17: ='5. Growth Factor - NUM_CALC2'!G17 -> 22.44 | H17: ='5. Growth Factor - NUM_CALC2'!H17 -> 0.0042 | I17: ='5. Growth Factor - NUM_CALC2'!I17 -> 0 | K17: =G17*C17*12 -> 16121524.32 | L17: =H17*D17 -> 2326204.814 | M17: 0 | N17: =SUM(K17,L17,M17) -> 18447729.13 | P17: =IF(ISERROR(K17/N24),0,ROUND(K17/N24,3)) -> 0.519 | Q17: =IF(ISERROR(L17/N24),0,ROUND(L17/N24,3)) -> 0.075 | R17: =IF(ISERROR(M17/N24),0,ROUND(M17/N24,3)) -> 0 | S17: =N17/N24 -> 0.5938910406
A18: =+'4. Growth Factor - NUM_CALC1'!A18 -> GENERAL SERVICE LESS THAN 50 KW | C18: 5224 | D18: =+'[5]I6.1 Revenue'!$E$25 -> 173842956 | E18: 0 | G18: ='5. Growth Factor - NUM_CALC2'!G18 -> 26.22 | H18: ='5. Growth Factor - NUM_CALC2'!H18 -> 0.014 | I18: ='5. Growth Factor - NUM_CALC2'!I18 -> 0 | K18: 1643679.36 | L18: 2433801.384 | M18: 0 | N18: 4077480.744 | P18: =IF(ISERROR(K18/N24),0,ROUND(K18/N24,3)) -> 0.053 | Q18: =IF(ISERROR(L18/N24),0,ROUND(L18/N24,3)) -> 0.078 | R18: =IF(ISERROR(M18/N24),0,ROUND(M18/N24,3)) -> 0 | S18: =N18/N24 -> 0.1312670662
A19: =+'4. Growth Factor - NUM_CALC1'!A19 -> GENERAL SERVICE GREATER THAN 50 KW | C19: 1012 | D19: 0 | E19: =+'[5]I6.1 Revenue'!$F$26 -> 2451173 | G19: ='5. Growth Factor - NUM_CALC2'!G19 -> 61.46 | H19: ='5. Growth Factor - NUM_CALC2'!H19 -> 0 | I19: ='5. Growth Factor - NUM_CALC2'!I19 -> 3.0256 | K19: 746370.24 | L19: 0 | M19: 7416269.029 | N19: 8162639.269 | P19: =IF(ISERROR(K19/N24),0,ROUND(K19/N24,3)) -> 0.024 | Q19: =IF(ISERROR(L19/N24),0,ROUND(L19/N24,3)) -> 0 | R19: =IF(ISERROR(M19/N24),0,ROUND(M19/N24,3)) -> 0.239 | S19: =N19/N24 -> 0.2627813046
A20: =+'4. Growth Factor - NUM_CALC1'!A20 -> UNMETERED SCATTERED LOAD | C20: 605 | D20: =+'[5]I6.1 Revenue'!$L$25 -> 3151827 | G20: ='5. Growth Factor - NUM_CALC2'!G20 -> 9.42 | H20: ='5. Growth Factor - NUM_CALC2'!H20 -> 0.0164 | I20: ='5. Growth Factor - NUM_CALC2'!I20 -> 0 | K20: 68389.2 | L20: 51689.9628 | M20: 0 | N20: 120079.1628 | P20: =IF(ISERROR(K20/N24),0,ROUND(K20/N24,3)) -> 0.002 | Q20: =IF(ISERROR(L20/N24),0,ROUND(L20/N24,3)) -> 0.002 | R20: =IF(ISERROR(M20/N24),0,ROUND(M20/N24,3)) -> 0 | S20: =N20/N24 -> 0.003865729946
A21: =+'4. Growth Factor - NUM_CALC1'!A21 -> STREET LIGHTING | C21: 15272 | D21: 0 | E21: =+'[5]I6.1 Revenue'!$J$26 -> 30525 | G21: ='5. Growth Factor - NUM_CALC2'!G21 -> 0.63 | H21: ='5. Growth Factor - NUM_CALC2'!H21 -> 0 | I21: ='5. Growth Factor - NUM_CALC2'!I21 -> 4.5568 | K21: 115456.32 | L21: 0 | M21: 139096.32 | N21: 254552.64 | P21: =IF(ISERROR(K21/N24),0,ROUND(K21/N24,3)) -> 0.004 | Q21: =IF(ISERROR(L21/N24),0,ROUND(L21/N24,3)) -> 0 | R21: =IF(ISERROR(M21/N24),0,ROUND(M21/N24,3)) -> 0.004 | S21: =N21/N24 -> 0.008194858628
E22: 0 | G22: ='5. Growth Factor - NUM_CALC2'!G22 -> 0 | H22: ='5. Growth Factor - NUM_CALC2'!H22 -> 0 | I22: ='5. Growth Factor - NUM_CALC2'!I22 -> 0 | K22: 0 | L22: 0 | M22: 0 | N22: 0 | P22: =IF(ISERROR(K22/N24),0,ROUND(K22/N24,3)) -> 0 | Q22: =IF(ISERROR(L22/N24),0,ROUND(L22/N24,3)) -> 0 | R22: =IF(ISERROR(M22/N24),0,ROUND(M22/N24,3)) -> 0 | S22: =N22/N24 -> 0
D23: 0 | G23: ='5. Growth Factor - NUM_CALC2'!G23 -> 0 | H23: ='5. Growth Factor - NUM_CALC2'!H23 -> 0 | I23: ='5. Growth Factor - NUM_CALC2'!I23 -> 0 | K23: 0 | L23: 0 | M23: 0 | N23: 0 | P23: =IF(ISERROR(K23/N24),0,ROUND(K23/N24,3)) -> 0 | Q23: =IF(ISERROR(L23/N24),0,ROUND(L23/N24,3)) -> 0 | R23: =IF(ISERROR(M23/N24),0,ROUND(M23/N24,3)) -> 0 | S23: =N23/N24 -> 0
A24: Total | C24: =SUM(C17:C23) -> 81982 | D24: =SUM(D17:D23) -> 730853072 | E24: =SUM(E17:E23) -> 2481698 | K24: =SUM(K17:K23) -> 18695419.44 | L24: =SUM(L17:L23) -> 4811696.161 | M24: =SUM(M17:M23) -> 7555365.349 | N24: =SUM(N17:N23) -> 31062480.95 | S24: =SUM(S17:S23) -> 1

Sheet 8. Revenue Proportions
A12: Current Revenue from Rates
A13: This sheet is used to determine the applicant's most current allocation of revenues (after the most recent revenue to cost ratio adjustment, if applicable) to appropriately allocate the incremental revenue requirement to the classes.
C14: Most Recent Board-Approved Base Rates | G14: =+'4. Growth Factor - NUM_CALC1'!G15:I15 -> Current Approved Distribution Rates
A15: Rate Class | C15: Monthly Service Charge | D15: Distribution Volumetric Rate kWh | E15: Distribution Volumetric Rate kW | G15: Re-based Billed Customers or Connections | H15: Re-based Billed kWh | I15: Re-based Billed kW | K15: Current Base Service Charge Revenue | L15: Current Base Distribution Volumetric Rate kWh Revenue | M15: Current Base Distribution Volumetric Rate kW Revenue | N15: Total Current Base Revenue | P15: Service Charge % Total Revenue | Q15: Distribution Volumetric Rate % Total Revenue | R15: Distribution Volumetric Rate % Total Revenue | S15: Total % Revenue
C16: A | D16: B | E16: C | G16: D | H16: E | I16: F | K16: G = A * D *12 | L16: H = B * E | M16: I = C * F | N16: J = G + H + I | P16: L = G / Jtotal | Q16: M = H / Jtotal | R16: N = I / Jtotal | S16: O = J / Jtotal
A17: =+'4. Growth Factor - NUM_CALC1'!A17 -> RESIDENTIAL | C17: 22.44 | D17: 0.0042 | E17: 0 | G17: ='4. Growth Factor - NUM_CALC1'!C17 -> 60593 | H17: ='4. Growth Factor - NUM_CALC1'!D17 -> 499660804 | I17: ='4. Growth Factor - NUM_CALC1'!E17 -> 0 | K17: =G17*C17*12 -> 16316483.04 | L17: =H17*D17 -> 2098575.377 | M17: 0 | N17: =SUM(K17,L17,M17) -> 18415058.42 | P17: =IF(ISERROR(K17/N24),0,K17/N24) -> 0.5303807144 | Q17: =IF(ISERROR(L17/N24),0,L17/N24) -> 0.06821592036 | R17: =IF(ISERROR(M17/N24),0,M17/N24) -> 0 | S17: =N17/N24 -> 0.5985966348
A18: =+'4. Growth Factor - NUM_CALC1'!A18 -> GENERAL SERVICE LESS THAN 50 KW | C18: 26.22 | D18: 0.014 | E18: 0 | G18: ='4. Growth Factor - NUM_CALC1'!C18 -> 5523 | H18: ='4. Growth Factor - NUM_CALC1'!D18 -> 165968773 | I18: ='4. Growth Factor - NUM_CALC1'!E18 -> 0 | K18: 1737756.72 | L18: 2323562.822 | M18: 0 | N18: 4061319.542 | P18: =IF(ISERROR(K18/N24),0,K18/N24) -> 0.05648721286 | Q18: =IF(ISERROR(L18/N24),0,L18/N24) -> 0.0755293225 | R18: =IF(ISERROR(M18/N24),0,M18/N24) -> 0 | S18: =N18/N24 -> 0.1320165354
A19: =+'4. Growth Factor - NUM_CALC1'!A19 -> GENERAL SERVICE GREATER THAN 50 KW | C19: 61.46 | D19: 0 | E19: 3.0256 | G19: ='4. Growth Factor - NUM_CALC1'!C19 -> 1006 | H19: ='4. Growth Factor - NUM_CALC1'!D19 -> 0 | I19: ='4. Growth Factor - NUM_CALC1'!E19 -> 2376074 | K19: 741945.12 | L19: 0 | M19: 7189049.494 | N19: 7930994.614 | P19: =IF(ISERROR(K19/N24),0,K19/N24) -> 0.02411753696 | Q19: =IF(ISERROR(L19/N24),0,L19/N24) -> 0 | R19: =IF(ISERROR(M19/N24),0,M19/N24) -> 0.2336859725 | S19: =N19/N24 -> 0.2578035095
A20: =+'4. Growth Factor - NUM_CALC1'!A20 -> UNMETERED SCATTERED LOAD | C20: 9.42 | D20: 0.0164 | E20: 0 | G20: ='4. Growth Factor - NUM_CALC1'!C20 -> 582 | H20: ='4. Growth Factor - NUM_CALC1'!D20 -> 3130312 | I20: ='4. Growth Factor - NUM_CALC1'!E20 -> 0 | K20: 65789.28 | L20: 51337.1168 | M20: 0 | N20: 117126.3968 | P20: =IF(ISERROR(K20/N24),0,K20/N24) -> 0.00213853471 | Q20: =IF(ISERROR(L20/N24),0,L20/N24) -> 0.001668755247 | R20: =IF(ISERROR(M20/N24),0,M20/N24) -> 0 | S20: =N20/N24 -> 0.003807289957
A21: =+'4. Growth Factor - NUM_CALC1'!A21 -> STREET LIGHTING | C21: 0.63 | D21: 0 | E21: 4.5568 | G21: ='4. Growth Factor - NUM_CALC1'!C21 -> 15386 | H21: ='4. Growth Factor - NUM_CALC1'!D21 -> 0 | I21: ='4. Growth Factor - NUM_CALC1'!E21 -> 26971 | K21: 116318.16 | L21: 0 | M21: 122901.4528 | N21: 239219.6128 | P21: =IF(ISERROR(K21/N24),0,K21/N24) -> 0.003781017554 | Q21: =IF(ISERROR(L21/N24),0,L21/N24) -> 0 | R21: =IF(ISERROR(M21/N24),0,M21/N24) -> 0.003995012907 | S21: =N21/N24 -> 0.007776030461
G22: ='4. Growth Factor - NUM_CALC1'!C22 -> 0 | H22: ='4. Growth Factor - NUM_CALC1'!D22 -> 0 | I22: 0 | K22: 0 | L22: 0 | M22: 0 | N22: 0 | P22: =IF(ISERROR(K22/N24),0,K22/N24) -> 0 | Q22: =IF(ISERROR(L22/N24),0,L22/N24) -> 0 | R22: =IF(ISERROR(M22/N24),0,M22/N24) -> 0 | S22: =N22/N24 -> 0
G23: ='4. Growth Factor - NUM_CALC1'!C23 -> 0 | H23: ='4. Growth Factor - NUM_CALC1'!D23 -> 0 | I23: ='4. Growth Factor - NUM_CALC1'!E23 -> 0 | K23: 0 | L23: 0 | M23: 0 | N23: 0 | P23: =IF(ISERROR(K23/N24),0,K23/N24) -> 0 | Q23: =IF(ISERROR(L23/N24),0,L23/N24) -> 0 | R23: =IF(ISERROR(M23/N24),0,M23/N24) -> 0 | S23: =N23/N24 -> 0
A24: Total | K24: =SUM(K17:K23) -> 18978292.32 | L24: =SUM(L17:L23) -> 4473475.316 | M24: =SUM(M17:M23) -> 7311950.947 | N24: =SUM(N17:N23) -> 30763718.58 | S24: =SUM(S17:S23) -> 1

Sheet 9. Threshold Test
A8: No Input Required.
C9: =IF('1. Information Sheet'!F26 = "COS", "Preliminary Threshold Calculation", "Final Threshold Calculation") -> Final Threshold Calculation
C13: Year | E13: =+'1. Information Sheet'!K26 -> 2019
C14: Year in which Applicant is applying | E14: =+'1. Information Sheet'!F28 -> 5
C16: Price Cap Index | E16: 0.012
C17: Growth Factor Calculation
C18: ='1. Information Sheet'!F46 -> 2017 Actual Distribution Revenues | E18: ='5. Growth Factor - NUM_CALC2'!N24 -> 30763718.58
C19: =+'1. Information Sheet'!F47:F47 -> 2014 Board-Approved Distribution Revenues | E19: ='7. Growth Factor - DEN_CALC1'!N24 -> 31062480.95
C20: Growth Factor | E20: =IF(ISERROR(E18/E19-1),0,(E18/E19-1)/('1. Information Sheet'!I46-'1. Information Sheet'!I47)) -> -0.003206036752
C21: Dead Band | E21: 0.1
C22: Average Net Fixed Assets
C23: Gross Fixed Assets Opening | E23: ='6. Rev_Requ_Check'!C10 -> 242255337
C24: Add: CWIP Opening | E24: ='6. Rev_Requ_Check'!C11 -> 0
C25: Capital Additions | E25: ='6. Rev_Requ_Check'!C12 -> 7730045
C26: Capital Disposals | E26: ='6. Rev_Requ_Check'!C13 -> 0
C27: Capital Retirements | E27: ='6. Rev_Requ_Check'!C14 -> 0
C28: Deduct: CWIP Closing | E28: ='6. Rev_Requ_Check'!C15 -> 0
C29: Gross Fixed Assets - Closing | E29: ='6. Rev_Requ_Check'!C16 -> 249985382
C31: Average Gross Fixed Assets | E31: =(E23+E29)/2 -> 246120359.5
C33: Accumulated Depreciation - Opening | E33: ='6. Rev_Requ_Check'!C19 -> 139112890
C34: Depreciation Expense | E34: ='6. Rev_Requ_Check'!C20 -> 4510060
C35: Disposals | E35: ='6. Rev_Requ_Check'!C21 -> 0
C36: Retirements | E36: ='6. Rev_Requ_Check'!C22 -> 0
C37: Accumulated Depreciation - Closing | E37: ='6. Rev_Requ_Check'!C23 -> 143622950
C39: Average Accumulated Depreciation | E39: =(E33+E37)/2 -> 141367920
C41: Average Net Fixed Assets | E41: =E31-E39 -> 104752439.5
C44: Working Capital Allowance
C45: Working Capital Allowance Base | E45: ='6. Rev_Requ_Check'!C29 -> 208278793
C46: Working Capital Allowance Rate | E46: ='6. Rev_Requ_Check'!C30 -> 0.13
C47: Working Capital Allowance | E47: =E45*E46 -> 27076243.09
C49: Rate Base | E49: =E41+E47 -> 131828682.6
C51: Depreciation | E51: =E34 -> 4510060
C53: Threshold Value (varies by Price Cap IR Year subsequent to CoS rebasing)
C54: Price Cap IR Year 2015 | E54: =IF(ISERROR(1+((RB/d)*(g+PCI*(1+g)))*((1+g)*(1+PCI))^(1-1) + 10%), 0, 1+((RB/d)*(g+PCI*(1+g)))*((1+g)*(1+PCI))^(1-1) + 10%) -> 1.355922276
C55: Price Cap IR Year 2016 | E55: =IF(ISERROR(1+((RB/d)*(g+PCI*(1+g)))*((1+g)*(1+PCI))^(2-1) + 10%), 0, 1+((RB/d)*(g+PCI*(1+g)))*((1+g)*(1+PCI))^(2-1) + 10%) -> 1.358163001
C56: Price Cap IR Year 2017 | E56: =IF(ISERROR(1+((RB/d)*(g+PCI*(1+g)))*((1+g)*(1+PCI))^(3-1) + 10%), 0, 1+((RB/d)*(g+PCI*(1+g)))*((1+g)*(1+PCI))^(3-1) + 10%) -> 1.360423345
C57: Price Cap IR Year 2018 | E57: =IF(ISERROR(1+((RB/d)*(g+PCI*(1+g)))*((1+g)*(1+PCI))^(4-1) + 10%), 0, 1+((RB/d)*(g+PCI*(1+g)))*((1+g)*(1+PCI))^(4-1) + 10%) -> 1.362703479
C58: Price Cap IR Year 2019 | E58: =IF(ISERROR(1+((RB/d)*(g+PCI*(1+g)))*((1+g)*(1+PCI))^(5-1) + 10%), 0, 1+((RB/d)*(g+PCI*(1+g)))*((1+g)*(1+PCI))^(5-1) + 10%) -> 1.365003577
C60: Threshold CAPEX
C61: =C54 -> Price Cap IR Year 2015 | E61: =IF(ISERROR(d*E54), "", d*E54) -> 6115290.819
C62: =C55 -> Price Cap IR Year 2016 | E62: =IF(ISERROR(d*E55), "", d*E55) -> 6125396.623
C63: =C56 -> Price Cap IR Year 2017 | E63: =IF(ISERROR(d*E56), "", d*E56) -> 6135590.909
C64: =C57 -> Price Cap IR Year 2018 | E64: =IF(ISERROR(d*E57), "", d*E57) -> 6145874.451
C65: =C58 -> Price Cap IR Year 2019 | E65: =IF(ISERROR(d*E58), "", d*E58) -> 6156248.031
B69: Note 1: | C69: The growth factor g is annualized, depending on the number of years between the numerator and denominator for the calculation. Typically, for ACM review in a cost of service and in the fourth year of Price Cap IR, the ratio is divided by 2 to annualize it. No division is normally required for the first three years under Price Cap IR.

Sheet 10b. Proposed ACM ICM Projects
A11: Identify ALL Proposed ACM projects and related CAPEX costs in the relevant years
C13: Cost of Service | D13: Price Cap IR
C14: Test Year | D14: Year 2 | E14: Year 3 | F14: Year 4 | G14: Year 5
C15: =+'1. Information Sheet'!F32 -> 2014 | D15: =+C15+2 -> 2016 | E15: =D15+1 -> 2017 | F15: =E15+1 -> 2018 | G15: =F15+1 -> 2019
A16: Distribution System Plan CAPEX | F16: =+'[6]Reply 2'!$C$4 -> 10488183.83 | G16: =+'[6]Reply 2'!$D$4 -> 14623987
A18: Materiality Threshold | D18: ='9. Threshold Test'!E62 -> 6125396.623 | E18: ='9. Threshold Test'!E63 -> 6135590.909 | F18: ='9. Threshold Test'!E64 -> 6145874.451 | G18: ='9. Threshold Test'!E65 -> 6156248.031
A20: Maximum Eligible Incremental Capital (Forecasted Capex less Threshold) | C20: 0 | D20: =IF(D18>D16,0,D16-D18) -> 0 | E20: =IF(E18>E16,0,E16-E18) -> 0 | F20: =IF(F18>F16,0,F16-F18) -> 4342309.379 | G20: =IF(G18>G16,0,G16-G18) -> 8467738.969
A22: Project Descriptions: | B22: Type | C22: Test Year | D22: =D14 -> Year 2 | E22: Year 3 | F22: Year 4 | G22: Year 5 | H22: Total
C23: =C15 -> 2014 | D23: 2016 | E23: 2017 | F23: 2018 | G23: 2019
A24: Project 1: Tremaine TS - CCRA True-up | B24: New ICM | F24: 0 | G24: 3717100 | H24: =SUM(D24:G24) -> 3717100
A25: Project 2: Tremaine TS - Additional Breaker Positions | B25: New ICM | F25: 1000000 | G25: 1000000 | H25: 2000000
A26: Project 3: Bronte TS - Additional Breaker Positions | B26: New ICM | F26: 0 | G26: 1030600 | H26: 1030600
H27: 0
H28: 0
H29: 0
H30: 0
H31: 0
H32: 0
H33: 0
H34: 0
H35: 0
H36: 0
H37: 0
H38: 0
H39: 0
H40: 0
H41: 0
H42: 0
A44: Total Cost of ACM Projects | C44: 0 | D44: =SUM(D24:D42) -> 0 | E44: =SUM(E24:E42) -> 0 | F44: =SUM(F24:F42) -> 1000000 | G44: =SUM(G24:G42) -> 5747700 | H44: =SUM(D44:G44) -> 6747700
A46: Maximum Allowed Incremental Capital | D46: =MIN(D44,D20) -> 0 | E46: =MIN(E44,E20) -> 0 | F46: =MIN(F44,F20) -> 1000000 | G46: =MIN(G44,G20) -> 5747700 | H46: =SUM(D46:G46) -> 6747700
D48: Price Cap IR
C49: Test Year | D49: Year 2 | G49: Year 3 | J49: Year 4 | M49: Year 5
C50: =C15 -> 2014 | E50: =D15 -> 2016 | H50: =E15 -> 2017 | K50: =F15 -> 2018 | N50: =G15 -> 2019
A51: Distribution System Plan CAPEX | C51: =C16 -> 0 | D51: =D16 -> 0 | G51: =E16 -> 0 | J51: =F16 -> 10488183.83 | M51: =G16 -> 14623987
A53: Materiality Threshold | D53: =D18 -> 6125396.623 | G53: =E18 -> 6135590.909 | J53: =F18 -> 6145874.451 | M53: =G18 -> 6156248.031
A55: Maximum Eligible Incremental Capital (Forecasted Capex less Threshold) | C55: 0 | D55: =D20 -> 0 | G55: =E20 -> 0 | J55: =F20 -> 4342309.379 | M55: =G20 -> 8467738.969
C57: Test Year | D57: Year 2 | G57: Year 3 | J57: Year 4 | M57: Year 5
C58: =C15 -> 2014 | E58: =D15 -> 2016 | H58: =E15 -> 2017 | K58: =F15 -> 2018 | N58: =G15 -> 2019
A59: Project Descriptions: | B59: Type | D59: Proposed ACM/ICM | E59: Amortization Expense | F59: CCA | G59: Proposed ACM/ICM | H59: Amortization Expense | I59: CCA | J59: Proposed ACM/ICM | K59: Amortization Expense | L59: CCA | M59: Proposed ACM/ICM | N59: Amortization Expense | O59: CCA
A60: =IF(OR(A24="", A24=0), "", A24) -> Project 1: Tremaine TS - CCRA True-up | B60: New ICM | D60: =IF(OR(D24="", D24=0), 0, D24) -> 0 | G60: =IF(OR(E24="", E24=0), 0, E24) -> 0 | J60: =IF(OR(F24="", F24=0), 0, F24) -> 0 | K60: =+J60/60 -> 0 | L60: =+J60*0.07 -> 0 | M60: =IF(OR(G24="", G24=0), 0, G24) -> 3717100 | N60: =+M60/60 -> 61951.66667 | O60: =+M60*0.07 -> 260197
A61: Project 2: Tremaine TS - Additional Breaker Positions | B61: New ICM | D61: 0 | G61: 0 | J61: 1000000 | K61: 16666.66667 | L61: 70000 | M61: 1000000 | N61: =+M61/60 -> 16666.66667 | O61: =+M61*0.07 -> 70000
A62: Project 3: Bronte TS - Additional Breaker Positions | B62: New ICM | D62: 0 | G62: 0 | J62: 0 | M62: 1030600 | N62: =+M62/60 -> 17176.66667 | O62: =+M62*0.07 -> 72142
D63: 0 | G63: 0 | J63: 0 | M63: 0 | N63: =+M63/5 -> 0 | O63: =+M63*0.55 -> 0
A64: =IF(OR(A29="", A29=0), "", A29) ->  | D64: =IF(OR(D29="", D29=0), 0, D29) -> 0 | G64: =IF(OR(E29="", E29=0), 0, E29) -> 0 | J64: =IF(OR(F29="", F29=0), 0, F29) -> 0 | M64: =IF(OR(G29="", G29=0), 0, G29) -> 0
D65: 0 | G65: 0 | J65: 0 | M65: 0
D66: 0 | G66: 0 | J66: 0 | M66: 0
D67: 0 | G67: 0 | J67: 0 | M67: 0
D68: 0 | G68: 0 | J68: 0 | M68: 0
D69: 0 | G69: 0 | J69: 0 | M69: 0
D70: 0 | G70: 0 | J70: 0 | M70: 0
D71: 0 | G71: 0 | J71: 0 | M71: 0
D72: 0 | G72: 0 | J72: 0 | M72: 0
D73: 0 | G73: 0 | J73: 0 | M73: 0
D74: 0 | G74: 0 | J74: 0 | M74: 0
D75: 0 | G75: 0 | J75: 0 | M75: 0
D76: 0 | G76: 0 | J76: 0 | M76: 0
D77: 0 | G77: 0 | J77: 0 | M77: 0
A79: Total Cost of Projects | D79: =SUM(D60:D77) -> 0 | E79: =SUM(E60:E77) -> 0 | F79: 0 | G79: 0 | H79: 0 | I79: 0 | J79: 1000000 | K79: 16666.66667 | L79: 70000 | M79: 5747700 | N79: 95795 | O79: 402339

Sheet 11. Incremental Capital Adj.
B12: Incremental Capital Adjustment
B16: Current Revenue Requirement
B18: Current Revenue Requirement - Total | E18: ='6. Rev_Requ_Check'!E62 -> 29406581.15 | F18: A
B21: Return on Rate Base | G21: Tremaine TS1 | H21: Tremaine TS2 | I21: Bronte TS | L21: Check = 0
B22: Incremental Capital | E22: =+'10b. Proposed ACM ICM Projects'!J79+'10b. Proposed ACM ICM Projects'!M79 -> 6747700 | F22: B | G22: =+'10b. Proposed ACM ICM Projects'!J60+'10b. Proposed ACM ICM Projects'!M60 -> 3717100 | H22: =+'10b. Proposed ACM ICM Projects'!J61+'10b. Proposed ACM ICM Projects'!M61 -> 2000000 | I22: =+'10b. Proposed ACM ICM Projects'!M62 -> 1030600 | J22: =+'10b. Proposed ACM ICM Projects'!M63 -> 0 | K22: =+'10b. Proposed ACM ICM Projects'!M64 -> 0 | L22: =SUM(G22:K22)-E22 -> 0
B23: Depreciation Expense | E23: =+'10b. Proposed ACM ICM Projects'!K79+'10b. Proposed ACM ICM Projects'!N79 -> 112461.6667 | F23: C | G23: =+'10b. Proposed ACM ICM Projects'!K60+'10b. Proposed ACM ICM Projects'!N60 -> 61951.66667 | H23: =+'10b. Proposed ACM ICM Projects'!K61+'10b. Proposed ACM ICM Projects'!N61 -> 33333.33333 | I23: =+'10b. Proposed ACM ICM Projects'!N62 -> 17176.66667 | J23: =+'10b. Proposed ACM ICM Projects'!N63 -> 0 | K23: =+'10b. Proposed ACM ICM Projects'!N64 -> 0 | L23: =SUM(G23:K23)-E23 -> 0
B24: Incremental Capital to be included in Rate Base | E24: =(+E22+(E22-E23))/2 -> 6691469.167 | F24: D = (B + (B-C))/2 | G24: =+G22-G23 -> 3655148.333 | H24: =+H22-H23 -> 1966666.667 | I24: 1013423.333 | J24: 0 | K24: 0 | L24: =SUM(G24:K24)-E24 -> -56230.83333
B26: Deemed ShortTerm Debt % | C26: ='6. Rev_Requ_Check'!C36 -> 0.04 | D26: E | E26: =E24*C26 -> 267658.7667 | F26: G = D * E | G26: =G24*$C26 -> 146205.9333 | H26: =H24*$C26 -> 78666.66667 | I26: 40536.93333 | J26: 0 | K26: 0 | L26: =SUM(G26:K26)-E26 -> -2249.233333
B27: Deemed Long Term Debt % | C27: ='6. Rev_Requ_Check'!C37 -> 0.56 | D27: F | E27: =E24*C27 -> 3747222.733 | F27: H = D * F | G27: =G24*$C27 -> 2046883.067 | H27: =H24*$C27 -> 1101333.333 | I27: 567517.0667 | J27: 0 | K27: 0 | L27: =SUM(G27:K27)-E27 -> -31489.26667
B29: Short Term Interest | C29: ='6. Rev_Requ_Check'!C40 -> 0.0211 | D29: I | E29: =E26*C29 -> 5647.599977 | F29: K = G * I | G29: =G26*$C29 -> 3084.945193 | H29: =H26*$C29 -> 1659.866667 | I29: 855.3292933 | J29: 0 | K29: 0 | L29: =SUM(G29:K29)-E29 -> -47.45882333
B30: Long Term Interest | C30: ='6. Rev_Requ_Check'!C41 -> 0.0473 | D30: J | E30: =E27*C30 -> 177243.6353 | F30: L = H * J | G30: =G27*$C30 -> 96817.56905 | H30: =H27*$C30 -> 52093.06667 | I30: 26843.55725 | J30: 0 | K30: 0 | L30: =SUM(G30:K30)-E30 -> -1489.442313
B32: Return on Rate Base - Interest | E32: =SUM(E29:E30) -> 182891.2353 | F32: M = K + L | G32: =SUM(G29:G30) -> 99902.51425 | H32: =SUM(H29:H30) -> 53752.93333 | I32: 27698.88655 | J32: 0 | K32: 0 | L32: =SUM(G32:K32)-E32 -> -1536.901137
B35: Deemed Equity % | C35: ='6. Rev_Requ_Check'!C38 -> 0.4 | D35: N | E35: =E24*C35 -> 2676587.667 | F35: P = D * N | G35: =G24* $C35 -> 1462059.333 | H35: =H24* $C35 -> 786666.6667 | I35: 405369.3333 | J35: 0 | K35: 0 | L35: =SUM(G35:K35)-E35 -> -22492.33333
B37: Return on Rate Base -Equity | C37: ='6. Rev_Requ_Check'!C42 -> 0.0936 | D37: O | E37: =E35*C37 -> 250528.6056 | F37: Q = P * O | G37: =G35*$C37 -> 136848.7536 | H37: =H35*$C37 -> 73632 | I37: 37942.5696 | J37: 0 | K37: 0 | L37: =SUM(G37:K37)-E37 -> -2105.2824
B39: Return on Rate Base - Total | E39: =E32+E37 -> 433419.8409 | F39: R = M + Q | G39: =G32+G37 -> 236751.2678 | H39: =H32+H37 -> 127384.9333 | I39: 65641.45615 | J39: 0 | K39: 0 | L39: =SUM(G39:K39)-E39 -> -3642.183537
B43: Amortization Expense
B45: Amortization Expense - Incremental | D45: C | E45: =E23 -> 112461.6667 | F45: S | G45: =G23 -> 61951.66667 | H45: =H23 -> 33333.33333 | I45: 17176.66667 | J45: 0 | K45: 0 | L45: =SUM(G45:K45)-E45 -> 0
B48: Grossed up PIL's
B50: Regulatory Taxable Income | D50: O | E50: =E37 -> 250528.6056 | F50: T | G50: =G37 -> 136848.7536 | H50: =H37 -> 73632 | I50: 37942.5696 | J50: 0 | K50: 0 | L50: =SUM(G50:K50)-E50 -> -2105.2824
B52: Add Back Amortization Expense | D52: S | E52: =E45 -> 112461.6667 | F52: U | G52: =G45 -> 61951.66667 | H52: =H45 -> 33333.33333 | I52: 17176.66667 | J52: 0 | K52: 0 | L52: =SUM(G52:K52)-E52 -> 0
B54: Deduct CCA | E54: =+'10b. Proposed ACM ICM Projects'!L79+'10b. Proposed ACM ICM Projects'!O79 -> 472339 | F54: V | G54: =+'10b. Proposed ACM ICM Projects'!L60+'10b. Proposed ACM ICM Projects'!O60 -> 260197 | H54: =+'10b. Proposed ACM ICM Projects'!L61+'10b. Proposed ACM ICM Projects'!O61 -> 140000 | I54: =+'10b. Proposed ACM ICM Projects'!$O62 -> 72142 | J54: =+'10b. Proposed ACM ICM Projects'!$O63 -> 0 | K54: =+'10b. Proposed ACM ICM Projects'!$O64 -> 0 | L54: =SUM(G54:K54)-E54 -> 0
B56: Incremental Taxable Income | E56: =E50+E52-E54 -> -109348.7277 | F56: W = T + U - V | G56: =G50+G52-G54 -> -61396.57973 | H56: =H50+H52-H54 -> -33034.66667 | I56: -17022.76373 | J56: 0 | K56: 0 | L56: =SUM(G56:K56)-E56 -> -2105.2824
B58: Current Tax Rate | C58: 0.265 | D58: X
B60: PIL's Before Gross Up | E60: =E56*C58 -> -28977.41285 | F60: Y = W * X | G60: =G56*$C58 -> -16270.09363 | H60: =H56*$C58 -> -8754.186667 | I60: -4511.032389 | J60: 0 | K60: 0 | L60: =SUM(G60:K60)-E60 -> -557.899836
B62: Incremental Grossed Up PIL's | E62: =E60/(1-C58) -> -39425.0515 | F62: Z = Y / ( 1 - X ) | G62: =G60/(1-$C58) -> -22136.18181 | H62: =H60/(1-$C58) -> -11910.45805 | I62: -6137.459033 | J62: 0 | K62: 0 | L62: =SUM(G62:K62)-E62 -> -759.0473959
B65: Ontario Capital Tax
B66: Incremental Capital CAPEX | F66: AA
B68: Less : Available Capital Exemption (if any) | F68: AB
B70: Incremental Capital CAPEX subject to OCT | F70: AC = AA - AB
B72: Ontario Capital Tax Rate (F1.1 Z-Factor Tax Changes) | D72: AD
B74: Incremental Ontario Capital Tax | F74: AE = AC * AD
B77: Incremental Revenue Requirement
B78: Return on Rate Base - Total | D78: Q | E78: =E39 -> 433419.8409 | F78: AA | G78: =G39 -> 236751.2678 | H78: =H39 -> 127384.9333 | I78: 65641.45615 | J78: 0 | K78: 0 | L78: =SUM(G78:K78)-E78 -> -3642.183537
B79: Amortization Expense - Total | D79: S | E79: =E45 -> 112461.6667 | F79: AB | G79: =G45 -> 61951.66667 | H79: =H45 -> 33333.33333 | I79: 17176.66667 | J79: 0 | K79: 0 | L79: =SUM(G79:K79)-E79 -> 0
B80: Incremental Grossed Up PIL's | D80: Z | E80: =E62 -> -39425.0515 | F80: AC | G80: =G62 -> -22136.18181 | H80: =H62 -> -11910.45805 | I80: -6137.459033 | J80: 0 | K80: 0 | L80: =SUM(G80:K80)-E80 -> -759.0473959
B83: Incremental Revenue Requirement | E83: =SUM(E78:E81) -> 506456.456 | F83: AD = AA + AB + AC | G83: =SUM(G78:G81) -> 276566.7527 | H83: =SUM(H78:H81) -> 148807.8086 | I83: 76680.66378 | J83: 0 | K83: 0 | L83: =SUM(G83:K83)-E83 -> -4401.230933

Sheet 12. Opt 1-Rate Rider Calc F & V
Z1: TRUE
Z2: FALSE
Z3: FALSE
A13: Calculation of incremental rate rider. Choose one of the 3 options:
A15: Rate Class | C15: Service Charge % Revenue | D15: Distribution Volumetric Rate % Revenue kWh | E15: Distribution Volumetric Rate % Revenue kW | F15: Service Charge Revenue | G15: Distribution Volumetric Rate Revenue kWh | H15: Distribution Volumetric Rate Revenue kW | I15: Total Revenue by Rate Class | K15: Billed Customers or Connections | L15: Billed kWh | M15: Billed kW | O15: Service Charge Rate Rider | P15: Distribution Volumetric Rate kWh Rate Rider | Q15: Distribution Volumetric Rate kW Rate Rider
C16: From Sheet 8 | D16: From Sheet 8 | E16: From Sheet 8 | F16: Col C * Col Itotal | G16: Col D* Col Itotal | H16: Col E* Col Itotal | K16: From Sheet 4 | L16: From Sheet 4 | M16: From Sheet 4 | O16: Col F / Col K / 12 | P16: Col G / Col L | Q16: Col H / Col M
A17: =+'4. Growth Factor - NUM_CALC1'!A17 -> RESIDENTIAL | C17: ='8. Revenue Proportions'!P17 -> 0.5303807144 | D17: ='8. Revenue Proportions'!Q17 -> 0.06821592036 | E17: ='8. Revenue Proportions'!R17 -> 0 | F17: =C17*$I$25 -> 268614.737 | G17: =D17*$I$25 -> 34548.39327 | H17: =E17*$I$25 -> 0 | I17: =SUM(F17:H17) -> 303163.1302 | K17: ='4. Growth Factor - NUM_CALC1'!C17 -> 60593 | L17: ='4. Growth Factor - NUM_CALC1'!D17 -> 499660804 | M17: 0 | O17: =IFERROR(I17/K17/12,"") -> 0.4169391545 | P17: 0 | Q17: =IFERROR(H17/M17,"") ->  | R17: Note: As per the OEB's letter issued July 16, 2015 (EB-2012-0410), Residential Rates will be applied on a fixed basis only.
A18: =+'4. Growth Factor - NUM_CALC1'!A18 -> GENERAL SERVICE LESS THAN 50 KW | C18: ='8. Revenue Proportions'!P18 -> 0.05648721286 | D18: ='8. Revenue Proportions'!Q18 -> 0.0755293225 | E18: ='8. Revenue Proportions'!R18 -> 0 | F18: =C18*$I$25 -> 28608.31364 | G18: 38252.313 | H18: 0 | I18: =SUM(F18:H18) -> 66860.62663 | K18: ='4. Growth Factor - NUM_CALC1'!C18 -> 5523 | L18: ='4. Growth Factor - NUM_CALC1'!D18 -> 165968773 | M18: 0 | O18: =IFERROR(F18/K18/12,"") -> 0.4316541982 | P18: =IFERROR(G18/L18,"") -> 0.0002304789769
A19: =+'4. Growth Factor - NUM_CALC1'!A19 -> GENERAL SERVICE GREATER THAN 50 KW | C19: ='8. Revenue Proportions'!P19 -> 0.02411753696 | D19: ='8. Revenue Proportions'!Q19 -> 0 | E19: ='8. Revenue Proportions'!R19 -> 0.2336859725 | F19: 12214.4823 | G19: 0 | H19: 118351.7695 | I19: 130566.2517 | K19: ='4. Growth Factor - NUM_CALC1'!C19 -> 1006 | L19: ='4. Growth Factor - NUM_CALC1'!D19 -> 0 | M19: ='4. Growth Factor - NUM_CALC1'!E19 -> 2376074 | O19: =IFERROR(F19/K19/12,"") -> 1.011802709 | P19: =IFERROR(G19/L19,"") ->  | Q19: =IFERROR(H19/M19,"") -> 0.04980979946
A20: =+'4. Growth Factor - NUM_CALC1'!A20 -> UNMETERED SCATTERED LOAD | C20: ='8. Revenue Proportions'!P20 -> 0.00213853471 | D20: ='8. Revenue Proportions'!Q20 -> 0.001668755247 | E20: ='8. Revenue Proportions'!R20 -> 0 | F20: 1083.07471 | G20: 845.1518683 | H20: 0 | I20: 1928.226579 | K20: ='4. Growth Factor - NUM_CALC1'!C20 -> 582 | L20: ='4. Growth Factor - NUM_CALC1'!D20 -> 3130312 | M20: ='4. Growth Factor - NUM_CALC1'!E20 -> 0 | O20: 0.1550794259 | P20: 0.0002699896586 | Q20: =IFERROR(H20/M20,"") -> 
A21: =+'4. Growth Factor - NUM_CALC1'!A21 -> STREET LIGHTING | C21: ='8. Revenue Proportions'!P21 -> 0.003781017554 | D21: ='8. Revenue Proportions'!Q21 -> 0 | E21: ='8. Revenue Proportions'!R21 -> 0.003995012907 | F21: 1914.920751 | G21: 0 | H21: 2023.300079 | I21: 3938.220829 | K21: ='4. Growth Factor - NUM_CALC1'!C21 -> 15386 | L21: ='4. Growth Factor - NUM_CALC1'!D21 -> 0 | M21: ='4. Growth Factor - NUM_CALC1'!E21 -> 26971 | O21: 0.01037155396 | Q21: 0.07501761442
C22: ='8. Revenue Proportions'!P22 -> 0 | D22: ='8. Revenue Proportions'!Q22 -> 0 | E22: ='8. Revenue Proportions'!R22 -> 0 | F22: 0 | G22: 0 | H22: 0 | I22: 0 | K22: ='4. Growth Factor - NUM_CALC1'!C22 -> 0 | L22: ='4. Growth Factor - NUM_CALC1'!D22 -> 0 | M22: 0 | O22: =IFERROR(I22/K22/12,"") -> 
C23: ='8. Revenue Proportions'!P23 -> 0 | D23: ='8. Revenue Proportions'!Q23 -> 0 | E23: ='8. Revenue Proportions'!R23 -> 0 | F23: 0 | G23: 0 | H23: 0 | I23: 0 | K23: ='4. Growth Factor - NUM_CALC1'!C23 -> 0 | L23: ='4. Growth Factor - NUM_CALC1'!D23 -> 0 | M23: ='4. Growth Factor - NUM_CALC1'!E23 -> 0
A24: Total | C24: =SUM(C17:C23) -> 0.6169050165 | D24: 0.1454139981 | E24: 0.2376809854 | F24: 312435.5284 | G24: 73645.85814 | H24: 120375.0695 | I24: 506456.456 | K24: =SUM(K17:K23) -> 83090 | L24: =SUM(L17:L23) -> 668759889 | M24: =SUM(M17:M23) -> 2403045
I25: ='11. Incremental Capital Adj.'!E83 -> 506456.456
I26: From Sheet 11, E83
